bitfinex/quotes_BTCUSD_20220226
["timestamp","ask_amount","ask_price","bid_price","bid_amount"]
[1645847977348,0.21629378,39439.0,39436.0,1.08233046]
[1645847977855,0.1507,39438.0,39436.0,0.19008102]
[1645847978050,0.1507,39438.0,39436.0,0.18835484]
[1645847978333,0.1507,39438.0,39428.0,0.015]
[1645847978334,0.33114322,39437.0,39428.0,0.015]
[1645847978527,0.1,39434.0,39428.0,0.015]
[1645847978834,0.28131432,39433.0,39428.0,0.015]
[1645847981729,0.28131432,39433.0,39429.0,0.00037386]
[1645847981930,0.28231432,39433.0,39429.0,0.00037386]
[1645847982546,0.27731432,39433.0,39429.0,0.00037386]
[1645847982747,0.27731432,39433.0,39424.0,0.32123665]
[1645847982947,0.27731432,39433.0,39429.0,0.00035175]
[1645847983150,0.27631432,39433.0,39429.0,0.00035175]
[1645847983950,0.27631432,39433.0,39424.0,0.32123665]
[1645847984147,0.27631432,39433.0,39429.0,0.00035175]
[1645847985149,0.27631432,39433.0,39424.0,0.32123665]
[1645847985349,0.27631432,39433.0,39429.0,0.00035175]
[1645847985898,0.27731432,39433.0,39429.0,0.00035175]
[1645847986400,0.27731432,39433.0,39424.0,0.32123665]
[1645847986601,0.22661432,39433.0,39429.0,0.00035175]
[1645847987199,0.22561432,39433.0,39429.0,0.00035175]
[1645847987602,0.22561432,39433.0,39424.0,0.32123665]
[1645847988401,0.22561432,39433.0,39421.0,0.73767609]
[1645847988402,0.22561432,39433.0,39423.0,0.32123665]
[1645847989208,0.22561432,39433.0,39424.0,0.32123665]
[1645847990045,0.22561432,39433.0,39427.0,0.00035181]
[1645847991045,0.22561432,39433.0,39422.0,0.32123665]
[1645847991245,0.22561432,39433.0,39428.0,0.00036452]
[1645847991944,0.22561432,39433.0,39428.0,0.00136452]
[1645847992345,0.22561432,39433.0,39428.0,0.001]
[1645847992646,0.22561432,39433.0,39429.0,0.00036452]
[1645847993503,0.22561432,39433.0,39428.0,0.001]
[1645847993702,0.22561432,39433.0,39429.0,0.00036452]
[1645847993902,0.22761432,39433.0,39429.0,0.00036452]
[1645847994703,0.22761432,39433.0,39422.0,0.26755471]
[1645847994905,0.33464348,39432.0,39429.0,0.00033938]
[1645847995103,0.22561432,39433.0,39429.0,0.00033938]
[1645847995906,0.22761432,39433.0,39421.0,0.63045471]
[1645847996207,0.17331238,39426.0,39423.0,0.00135772]
[1645847996407,0.12983723,39426.0,39423.0,0.00135772]
[1645847997064,0.46324533,39426.0,39423.0,0.00135772]
[1645847997267,0.17550526,39420.0,39418.0,0.122]
[1645847997563,0.17550526,39420.0,39417.0,0.26755471]
[1645847997763,0.17550526,39420.0,39416.0,0.26755471]
[1645847998162,0.0507,39426.0,39417.0,0.26755471]
[1645847999163,0.20171212,39422.0,39417.0,0.26755471]
[1645847999368,0.20171212,39422.0,39416.0,0.0003285]
[1645847999369,0.20171212,39422.0,39418.0,0.26755471]
[1645847999664,0.20171212,39422.0,39418.0,0.26788321]
[1645847999863,0.20271212,39422.0,39418.0,0.26788321]
[1645848000063,0.20271212,39422.0,39418.0,0.0003285]
[1645848000466,0.85,39421.0,39410.0,0.67359604]
[1645848000664,1.18817212,39421.0,39410.0,0.22477609]
[1645848000895,1.18817212,39421.0,39408.0,0.3662]
[1645848001095,1.25767212,39421.0,39408.0,0.3662]
[1645848001299,0.9195,39421.0,39408.0,0.3662]
[1645848001495,0.2131951,39415.0,39408.0,0.3662]
[1645848001697,0.2131951,39415.0,39406.0,0.09]
[1645848002099,0.116,39419.0,39410.0,0.00033033]
[1645848002298,0.02248607,39412.0,39411.0,0.37749]
[1645848002498,0.01104326,39412.0,39410.0,0.00033033]
[1645848002698,0.00033029,39414.0,39410.0,0.00033033]
[1645848002699,0.00033029,39414.0,39411.0,0.37749]
[1645848003097,0.01013,39425.0,39411.0,0.37749]
[1645848003098,0.19774267,39421.0,39411.0,0.37749]
[1645848003299,0.01013,39425.0,39410.0,0.00033033]
[1645848003499,0.00033029,39414.0,39410.0,0.31982859]
[1645848003700,0.00033029,39414.0,39411.0,0.42749]
[1645848003900,0.00033029,39414.0,39411.0,0.49091]
[1645848004100,0.00033029,39414.0,39412.0,0.13348802]
[1645848004406,0.33817212,39426.0,39413.0,0.37749]
[1645848004648,0.00033029,39414.0,39413.0,0.32843862]
[1645848004846,0.00033029,39414.0,39413.0,0.42749]
[1645848005245,0.00033029,39414.0,39413.0,0.47819]
[1645848005246,0.01137355,39414.0,39413.0,0.47819]
[1645848005647,0.01104326,39414.0,39413.0,0.91617691]
[1645848006050,0.01104326,39414.0,39413.0,1.28564775]
[1645848007054,0.01104326,39414.0,39413.0,2.04680775]
[1645848007449,0.01104326,39414.0,39413.0,2.92010775]
[1645848007849,0.01104326,39414.0,39413.0,3.01990775]
[1645848008049,0.01104326,39414.0,39413.0,3.21970775]
[1645848008298,0.01104326,39414.0,39413.0,2.24660775]
[1645848008494,0.00706121,39414.0,39413.0,2.34660775]
[1645848008693,0.00032887,39415.0,39413.0,2.34660775]
[1645848008893,0.00032887,39415.0,39414.0,0.81566655]
[1645848009094,0.00032887,39415.0,39414.0,1.82231655]
[1645848009293,0.3799,39427.0,39417.0,0.79866]
[1645848009496,0.3799,39427.0,39419.0,0.43754057]
[1645848009699,0.3799,39427.0,39420.0,1.46903745]
[1645848009894,0.3799,39427.0,39420.0,1.88845348]
[1645848010394,0.00706121,39424.0,39420.0,1.88845348]
[1645848010602,0.00706121,39424.0,39420.0,2.68711348]
[1645848010796,0.00032896,39425.0,39424.0,1.239667]
[1645848010996,0.00032896,39425.0,39424.0,1.76932002]
[1645848011195,0.00032896,39425.0,39424.0,2.51688524]
[1645848011397,0.00032896,39425.0,39424.0,1.76762524]
[1645848011600,0.1963,39441.0,39425.0,0.02536]
[1645848011796,0.1963,39441.0,39426.0,0.74890145]
[1645848012053,0.1963,39441.0,39428.0,0.37761]
[1645848012258,0.1963,39441.0,39429.0,0.0507]
[1645848012458,0.1913,39441.0,39430.0,0.37761]
[1645848012656,0.1913,39441.0,39431.0,0.37761]
[1645848012855,0.1913,39441.0,39430.0,0.0507]
[1645848012856,0.1913,39441.0,39430.0,0.1007]
[1645848013056,0.00032888,39437.0,39430.0,0.0507]
[1645848013258,0.00032888,39437.0,39431.0,0.37761]
[1645848013458,0.00706121,39436.0,39431.0,0.37761]
[1645848013659,0.00032888,39437.0,39431.0,0.37761]
[1645848014060,0.3638,39442.0,39430.0,0.0507]
[1645848014260,0.00032889,39436.0,39430.0,0.0507]
[1645848014460,0.00032889,39436.0,39431.0,0.37761]
[1645848014661,0.00032889,39436.0,39434.0,0.37761]
[1645848014865,0.00032889,39436.0,39435.0,0.33817212]
[1645848015064,0.00032889,39436.0,39435.0,0.37761]
[1645848015262,0.3638,39442.0,39433.0,1.07481912]
[1645848015461,0.00032888,39437.0,39433.0,1.07481912]
[1645848016492,0.00706121,39435.0,39433.0,1.07481912]
[1645848016692,0.00032888,39437.0,39434.0,0.37761]
[1645848017296,0.00032888,39437.0,39434.0,0.33817212]
[1645848017500,0.00032888,39437.0,39435.0,0.42831]
[1645848017696,0.3638,39442.0,39436.0,0.33817212]
[1645848017899,0.3638,39442.0,39437.0,0.42831]
[1645848018095,0.3638,39442.0,39438.0,0.33817212]
[1645848018297,0.3638,39442.0,39439.0,0.37761]
[1645848018498,0.3638,39442.0,39440.0,0.71578212]
[1645848018698,0.19147823,39449.0,39440.0,0.42831]
[1645848018899,0.191,39449.0,39441.0,0.33817212]
[1645848019099,0.00011959,39443.0,39441.0,0.38887212]
[1645848019298,0.00011959,39443.0,39442.0,0.37761]
[1645848019564,0.00011959,39443.0,39442.0,0.71578212]
[1645848019955,0.191,39449.0,39442.0,1.79260124]
[1645848020161,0.191,39449.0,39442.0,1.41499124]
[1645848020162,0.21538906,39448.0,39442.0,1.41499124]
[1645848020356,0.00036437,39444.0,39442.0,1.07681912]
[1645848021157,0.00036437,39444.0,39442.0,0.50527149]
[1645848021357,0.21538906,39448.0,39442.0,0.50527149]
[1645848021655,0.00036437,39445.0,39442.0,0.50527149]
[1645848022458,0.21538906,39448.0,39442.0,0.50527149]
[1645848022661,0.00036437,39445.0,39442.0,0.50527149]
[1645848023607,0.21538906,39448.0,39442.0,0.50527149]
[1645848023810,0.00035068,39445.0,39442.0,0.50527149]
[1645848024007,0.00135068,39445.0,39442.0,0.50527149]
[1645848024209,0.00706121,39444.0,39442.0,0.50527149]
[1645848024409,0.00135068,39445.0,39442.0,0.50527149]
[1645848024810,0.001,39445.0,39442.0,0.50527149]
[1645848025009,0.001,39445.0,39438.0,0.34016252]
[1645848025212,0.001,39445.0,39442.0,0.50527149]
[1645848025410,0.00035068,39445.0,39442.0,0.50527149]
[1645848025611,0.00706121,39444.0,39442.0,0.50527149]
[1645848025812,0.00035068,39445.0,39442.0,0.50527149]
[1645848026011,0.21538906,39448.0,39442.0,0.50527149]
[1645848026212,0.55555158,39448.0,39442.0,0.50527149]
[1645848026411,0.00035069,39445.0,39442.0,0.50527149]
[1645848027150,0.00706121,39444.0,39442.0,0.50527149]
[1645848027352,0.21538906,39448.0,39442.0,0.50527149]
[1645848027550,0.0003516,39445.0,39442.0,0.50527149]
[1645848028451,0.21538906,39448.0,39442.0,0.50527149]
[1645848028652,0.00741281,39445.0,39442.0,0.50527149]
[1645848029051,0.0003516,39445.0,39442.0,0.50527149]
[1645848029651,0.21538906,39448.0,39442.0,0.50527149]
[1645848029851,0.0003516,39445.0,39442.0,0.50527149]
[1645848030262,0.00706121,39444.0,39436.0,0.37761]
[1645848030456,0.0013516,39445.0,39436.0,0.37761]
[1645848030654,0.0013516,39445.0,39440.0,0.50527149]
[1645848030900,0.001,39445.0,39444.0,0.00014939]
[1645848031506,0.21538906,39448.0,39444.0,0.00014939]
[1645848031700,0.00706121,39446.0,39444.0,0.00014939]
[1645848032101,0.21538906,39448.0,39444.0,0.00014939]
[1645848032400,0.00035153,39447.0,39444.0,0.00014939]
[1645848033205,0.21538906,39448.0,39444.0,0.00014939]
[1645848033404,0.00706121,39446.0,39444.0,0.00014939]
[1645848033603,0.00035153,39447.0,39444.0,0.00014939]
[1645848034406,0.002,39446.0,39444.0,0.00014939]
[1645848034851,0.00906121,39446.0,39444.0,0.00014939]
[1645848035056,0.002,39446.0,39444.0,0.00014939]
[1645848035853,0.002,39446.0,39445.0,0.50527149]
[1645848036652,0.00035227,39447.0,39445.0,0.50527149]
[1645848036854,0.35029252,39452.0,39445.0,0.50527149]
[1645848036855,0.34016252,39452.0,39445.0,0.50527149]
[1645848037054,0.117,39455.0,39445.0,0.50527149]
[1645848037055,0.34016252,39454.0,39445.0,0.50527149]
[1645848037452,0.117,39455.0,39445.0,0.50527149]
[1645848037853,0.00706121,39448.0,39445.0,0.50527149]
[1645848038056,0.34016252,39454.0,39445.0,0.50527149]
[1645848038304,0.0001195,39450.0,39445.0,0.50527149]
[1645848039306,0.002,39451.0,39445.0,0.50527149]
[1645848039506,0.00035243,39449.0,39445.0,0.50527149]
[1645848040108,0.00035243,39449.0,39447.0,0.37761]
[1645848040510,0.0022,39455.0,39446.0,0.0507]
[1645848040714,0.0001195,39450.0,39446.0,0.0507]
[1645848040910,0.00706121,39448.0,39446.0,0.0507]
[1645848041110,0.0001195,39450.0,39447.0,0.37761]
[1645848041309,0.0001195,39450.0,39447.0,0.50527149]
[1645848041712,0.0022,39455.0,39447.0,0.55597149]
[1645848041911,0.0001195,39450.0,39447.0,0.55597149]
[1645848042555,0.00706121,39448.0,39447.0,0.55597149]
[1645848042754,0.00706121,39448.0,39447.0,0.93358149]
[1645848042956,0.00706121,39448.0,39447.0,0.55597149]
[1645848043155,0.00706121,39448.0,39447.0,0.93358149]
[1645848044857,0.0003527,39449.0,39447.0,0.93358149]
[1645848045057,0.0003527,39449.0,39447.0,0.55597149]
[1645848045258,0.0022,39455.0,39448.0,0.37761]
[1645848045459,0.0022,39455.0,39447.0,0.50527149]
[1645848045658,0.00036049,39450.0,39447.0,0.55527149]
[1645848045909,0.00036049,39450.0,39448.0,0.37761]
[1645848046506,0.0022,39455.0,39449.0,0.50527149]
[1645848046908,0.00012731,39451.0,39449.0,0.50527149]
[1645848047107,0.00012731,39451.0,39450.0,0.37761]
[1645848047608,0.0022,39455.0,39450.0,0.37761]
[1645848047808,0.0022,39455.0,39449.0,0.55527149]
[1645848048007,0.00711434,39452.0,39449.0,0.50527149]
[1645848048807,0.00698703,39452.0,39449.0,0.50527149]
[1645848049007,0.0022,39455.0,39449.0,0.50527149]
[1645848049208,0.00036453,39452.0,39449.0,0.50527149]
[1645848049553,0.00698703,39450.0,39449.0,0.50527149]
[1645848049754,0.00698703,39450.0,39449.0,0.88288149]
[1645848050758,0.00698703,39450.0,39449.0,0.50527149]
[1645848051157,0.00175157,39456.0,39449.0,0.50527149]
[1645848051557,0.00036454,39451.0,39444.0,0.1169]
[1645848051757,0.00036454,39451.0,39450.0,0.50527149]
[1645848051958,0.00036454,39451.0,39450.0,0.88288149]
[1645848052360,0.00036454,39451.0,39450.0,0.93288149]
[1645848052658,0.00175157,39456.0,39451.0,0.37761]
[1645848053703,0.00175157,39456.0,39453.0,0.37761]
[1645848053905,0.00175157,39456.0,39455.0,0.37761]
[1645848054304,0.0022,39460.0,39455.0,0.71777252]
[1645848054504,0.0022,39460.0,39456.0,0.0507]
[1645848054703,0.0022,39460.0,39457.0,0.71777252]
[1645848054904,0.0022,39460.0,39458.0,0.0507]
[1645848055202,0.0022,39460.0,39459.0,0.37761]
[1645848055402,0.0022,39460.0,39459.0,0.76847252]
[1645848055604,0.0022,39460.0,39459.0,0.39086252]
[1645848055806,0.0022,39460.0,39459.0,0.42831]
[1645848056008,0.0022,39460.0,39459.0,0.42031]
[1645848056406,0.0022,39460.0,39459.0,0.42131]
[1645848056908,0.0022,39460.0,39459.0,0.76147252]
[1645848057150,0.0022,39460.0,39459.0,0.92658149]
[1645848057358,0.0022,39460.0,39459.0,0.92558149]
[1645848057549,0.0022,39460.0,39459.0,0.54797149]
[1645848058657,0.02332206,39458.0,39455.0,0.84016252]
[1645848058853,0.01832206,39458.0,39456.0,0.42831]
[1645848059455,0.01832206,39458.0,39457.0,0.34221874]
[1645848059656,0.01832206,39458.0,39457.0,0.71982874]
[1645848059855,0.01832206,39458.0,39457.0,0.76982874]
[1645848060657,0.01832206,39458.0,39457.0,0.42761]
[1645848061099,0.01832206,39458.0,39454.0,0.34221874]
[1645848061309,0.01832206,39458.0,39457.0,0.42761]
[1645848062498,0.01832206,39458.0,39457.0,0.42861]
[1645848063301,0.01332206,39458.0,39457.0,0.42861]
[1645848063699,0.01332206,39458.0,39457.0,0.42761]
[1645848066360,0.01332206,39458.0,39457.0,0.77082874]
[1645848066860,0.01332206,39458.0,39457.0,0.42861]
[1645848067660,0.01332206,39458.0,39457.0,0.76982874]
[1645848068061,0.01332206,39458.0,39457.0,0.42761]
[1645848070307,0.01332206,39458.0,39457.0,0.76982874]
[1645848070506,0.01332206,39458.0,39457.0,0.42861]
[1645848070706,0.01332206,39458.0,39457.0,0.77082874]
[1645848071308,0.01332206,39458.0,39457.0,0.42861]
[1645848071810,0.01332206,39458.0,39457.0,0.4275478]
[1645848072056,0.01332206,39458.0,39457.0,0.76976654]
[1645848072456,0.01332206,39458.0,39457.0,0.77076654]
[1645848075063,0.01332206,39458.0,39457.0,0.4285478]
[1645848075460,0.01332206,39458.0,39457.0,0.77076654]
[1645848075660,0.01332206,39458.0,39457.0,0.76976654]
[1645848076897,0.01301703,39458.0,39457.0,0.76976654]
[1645848077697,0.01301703,39458.0,39457.0,0.4275478]
[1645848078298,0.01301703,39458.0,39457.0,0.76976654]
[1645848078499,0.00751703,39458.0,39457.0,1.77112654]
[1645848078700,0.00751703,39458.0,39457.0,1.78124654]
[1645848078899,0.00751703,39458.0,39457.0,1.76826654]
[1645848079100,0.00751703,39458.0,39457.0,2.54156654]
[1645848079551,0.00751703,39458.0,39457.0,2.44156654]
[1645848079758,0.00751703,39458.0,39457.0,2.43956654]
[1645848079951,0.0022,39463.0,39459.0,0.9]
[1645848080151,0.0022,39463.0,39460.0,0.77052874]
[1645848080552,0.0022,39463.0,39460.0,0.82052874]
[1645848080762,0.0022,39463.0,39460.0,1.68252874]
[1645848080957,0.0026042,39465.0,39460.0,1.68252874]
[1645848080958,0.0026042,39465.0,39463.0,0.37761]
[1645848081154,0.0026042,39465.0,39464.0,0.71982874]
[1645848081356,0.0011,39465.0,39464.0,0.76982874]
[1645848081556,0.0011,39465.0,39464.0,1.53001874]
[1645848082555,0.0011,39465.0,39464.0,1.53201874]
[1645848083906,0.0011,39465.0,39464.0,1.53001874]
[1645848084207,0.0011,39465.0,39464.0,1.31019]
[1645848084604,0.0011,39465.0,39464.0,1.6878]
[1645848085305,0.0011,39465.0,39464.0,1.1878]
[1645848087161,0.0011,39465.0,39464.0,0.76019]
[1645848087564,0.0011,39465.0,39464.0,1.1378]
[1645848087957,0.20352187,39465.0,39464.0,1.1378]
[1645848088962,0.20352187,39465.0,39464.0,0.56659372]
[1645848090563,0.20352187,39465.0,39464.0,0.56759372]
[1645848090803,0.0001985,39465.0,39464.0,0.56759372]
[1645848091806,0.0001985,39465.0,39464.0,0.56659372]
[1645848092211,0.0006985,39468.0,39464.0,0.56659372]
[1645848092409,0.00036313,39466.0,39465.0,0.72324238]
[1645848092605,0.00036313,39466.0,39465.0,0.37761]
[1645848092810,0.00036313,39466.0,39465.0,0.47761]
[1645848093509,0.0006985,39468.0,39465.0,0.47761]
[1645848093708,0.00033804,39467.0,39465.0,0.47761]
[1645848094550,0.0006985,39468.0,39466.0,0.34563238]
[1645848094752,0.00103654,39468.0,39467.0,0.42761]
[1645848095752,0.0006985,39468.0,39467.0,0.42761]
[1645848098504,0.0006985,39468.0,39467.0,0.42861]
[1645848098700,0.0006985,39468.0,39467.0,0.37861]
[1645848099800,0.0006985,39468.0,39467.0,0.37761]
[1645848100200,0.0006985,39468.0,39467.0,0.72324238]
[1645848100405,0.0006985,39468.0,39467.0,0.37761]
[1645848100601,0.0006985,39468.0,39467.0,0.38061]
[1645848101800,0.0006985,39468.0,39467.0,0.37761]
[1645848102458,0.0016985,39468.0,39467.0,0.37761]
[1645848102659,0.0016985,39468.0,39466.0,0.00015997]
[1645848102858,0.0016985,39468.0,39467.0,0.37761]
[1645848103859,0.0006985,39468.0,39467.0,0.37761]
[1645848104459,0.0006985,39468.0,39467.0,0.37861]
[1645848105809,0.0006985,39468.0,39467.0,0.37761]
[1645848106206,0.00715122,39469.0,39467.0,0.05]
[1645848106406,0.00715122,39469.0,39468.0,0.37761]
[1645848106606,0.00715122,39469.0,39467.0,0.37761]
[1645848106607,0.0067985,39469.0,39467.0,0.37761]
[1645848106805,0.0067985,39469.0,39468.0,0.1]
[1645848107209,0.0067985,39469.0,39466.0,0.00015997]
[1645848107409,0.0067985,39469.0,39467.0,0.37761]
[1645848107706,0.0067985,39469.0,39467.0,0.42761]
[1645848107907,0.0067985,39469.0,39467.0,0.05]
[1645848108108,0.0067985,39469.0,39468.0,0.37761]
[1645848108710,0.0067985,39469.0,39467.0,0.051]
[1645848108910,0.0067985,39469.0,39468.0,0.37761]
[1645848109757,0.0067985,39469.0,39468.0,0.42761]
[1645848110553,0.0067985,39469.0,39468.0,0.42861]
[1645848110754,0.0067985,39469.0,39468.0,1.75991]
[1645848111153,0.0067985,39469.0,39468.0,1.76006979]
[1645848111555,0.0067985,39469.0,39468.0,1.71006979]
[1645848111755,0.0067985,39469.0,39468.0,1.70906979]
[1645848112056,0.0067985,39469.0,39468.0,1.33145979]
[1645848112455,0.0067985,39469.0,39468.0,1.70906979]
[1645848112757,0.0067985,39469.0,39468.0,1.33145979]
[1645848114609,0.0087985,39469.0,39468.0,1.33145979]
[1645848115510,0.0087985,39469.0,39468.0,1.70906979]
[1645848115910,0.0067985,39469.0,39468.0,1.70906979]
[1645848116511,0.0087985,39469.0,39468.0,1.70906979]
[1645848117761,0.0067985,39469.0,39468.0,1.70906979]
[1645848118560,0.0067985,39469.0,39468.0,1.71006979]
[1645848119762,0.0067985,39469.0,39468.0,1.70906979]
[1645848119963,0.0067985,39469.0,39468.0,1.33145979]
[1645848120365,0.0067985,39469.0,39468.0,0.76028991]
[1645848120563,0.0087985,39469.0,39468.0,0.76028991]
[1645848120807,0.0087985,39469.0,39468.0,0.7604497]
[1645848120808,0.22586378,39469.0,39468.0,0.7604497]
[1645848122306,0.22386378,39469.0,39468.0,0.7604497]
[1645848124564,0.68035486,39469.0,39468.0,0.7601497]
[1645848124762,0.73105486,39469.0,39468.0,0.7601497]
[1645848126363,0.72905486,39469.0,39468.0,0.7601497]
[1645848126563,0.73105486,39469.0,39468.0,0.7601497]
[1645848127565,0.38197478,39469.0,39468.0,0.7601497]
[1645848127763,0.37997478,39469.0,39468.0,0.7601497]
[1645848127963,0.72905486,39469.0,39468.0,0.7601497]
[1645848129605,0.37997478,39469.0,39468.0,0.7601497]
[1645848130407,0.37997478,39469.0,39468.0,0.68064871]
[1645848134465,0.27997478,39469.0,39468.0,0.68064871]
[1645848134660,0.37997478,39469.0,39468.0,0.68064871]
[1645848135842,0.37997478,39469.0,39455.0,0.05]
[1645848135843,1.155411,39468.0,39455.0,0.05]
[1645848136043,0.1,39464.0,39455.0,0.05]
[1645848136241,0.1,39461.0,39455.0,0.05]
[1645848136440,0.056111,39460.0,39452.0,0.49549853]
[1645848136641,0.056111,39460.0,39452.0,0.1217]
[1645848137240,0.056111,39460.0,39452.0,0.44229711]
[1645848137241,0.17342119,39459.0,39452.0,0.44229711]
[1645848137440,0.056111,39458.0,39452.0,0.44229711]
[1645848137640,0.056111,39458.0,39452.0,0.32059711]
[1645848138242,0.16823538,39453.0,39452.0,0.32059711]
[1645848138444,0.16823538,39453.0,39451.0,0.32059711]
[1645848139247,0.0507,39458.0,39450.0,0.32059711]
[1645848139447,0.00037736,39461.0,39452.0,0.32059711]
[1645848139665,0.00037736,39461.0,39453.0,0.32059711]
[1645848139860,0.00037736,39461.0,39452.0,0.32059711]
[1645848140060,0.00037736,39461.0,39453.0,0.32059711]
[1645848140260,0.0507,39464.0,39453.0,0.32059711]
[1645848140261,0.17748025,39463.0,39453.0,0.32059711]
[1645848140462,0.00037738,39461.0,39453.0,0.32059711]
[1645848140663,0.00037738,39461.0,39454.0,0.32059711]
[1645848141461,0.17748025,39463.0,39454.0,0.32059711]
[1645848141661,0.00014021,39461.0,39454.0,0.32059711]
[1645848142662,0.17748025,39463.0,39454.0,0.32159711]
[1645848142862,0.0003771,39461.0,39454.0,0.32159711]
[1645848143809,0.17748025,39463.0,39451.0,0.32059711]
[1645848144005,0.00014021,39461.0,39453.0,0.32059711]
[1645848144604,0.00014021,39461.0,39453.0,0.32259711]
[1645848144809,0.00014021,39461.0,39454.0,0.32059711]
[1645848145004,0.17748025,39463.0,39454.0,0.32059711]
[1645848145204,0.00014021,39461.0,39454.0,0.32059711]
[1645848146207,0.7048247,39468.0,39455.0,0.37761]
[1645848146407,0.00014021,39461.0,39455.0,0.32059711]
[1645848147261,0.00014021,39461.0,39456.0,0.05]
[1645848147464,0.17172495,39465.0,39457.0,0.37761]
[1645848147660,0.00037692,39461.0,39456.0,0.05]
[1645848147860,0.00037692,39461.0,39454.0,0.002]
[1645848148063,0.00037692,39461.0,39455.0,0.37761]
[1645848148260,0.00037692,39461.0,39455.0,0.42761]
[1645848148662,0.17172495,39465.0,39455.0,0.052]
[1645848148862,0.17172495,39465.0,39455.0,0.002]
[1645848148863,0.00037692,39461.0,39455.0,0.002]
[1645848149063,0.00037692,39461.0,39456.0,0.37761]
[1645848149262,0.00037692,39461.0,39456.0,0.42761]
[1645848149664,0.17155175,39465.0,39456.0,0.05]
[1645848149866,0.17155175,39465.0,39453.0,0.42379853]
[1645848150068,0.17155175,39465.0,39454.0,0.37761]
[1645848150267,0.17155175,39465.0,39454.0,0.05]
[1645848150567,0.17155175,39465.0,39454.0,0.052]
[1645848150806,0.17155175,39465.0,39455.0,0.42761]
[1645848151008,0.17155175,39465.0,39455.0,0.05]
[1645848151407,0.00014021,39463.0,39455.0,0.05]
[1645848152208,0.17155175,39465.0,39455.0,0.05]
[1645848152712,0.00037691,39463.0,39455.0,0.05]
[1645848153513,0.17155175,39465.0,39455.0,0.05]
[1645848153712,0.00037691,39463.0,39455.0,0.05]
[1645848154311,7.196e-05,39463.0,39455.0,0.05]
[1645848154560,0.00107196,39463.0,39455.0,0.05]
[1645848154765,0.001,39463.0,39455.0,0.05]
[1645848155267,0.001,39463.0,39453.0,0.37379853]
[1645848155466,0.001,39463.0,39451.0,0.37379853]
[1645848155666,0.001,39463.0,39450.0,0.37479853]
[1645848155864,0.3516047,39464.0,39450.0,0.37379853]
[1645848156064,0.3516047,39464.0,39450.0,0.41510333]
[1645848156364,0.2209175,39458.0,39452.0,0.37761]
[1645848157467,0.2209175,39458.0,39453.0,0.00037699]
[1645848158165,0.2209175,39458.0,39452.0,0.36917552]
[1645848158409,0.2209175,39458.0,39454.0,0.00037698]
[1645848158610,0.12799687,39465.0,39455.0,0.37761]
[1645848158811,0.11787687,39465.0,39454.0,0.00037698]
[1645848159411,0.1175,39465.0,39451.0,0.05]
[1645848159613,0.21004526,39461.0,39452.0,0.03861004]
[1645848159910,0.21004526,39461.0,39453.0,0.37761]
[1645848160111,0.21004526,39461.0,39453.0,0.42761]
[1645848160515,0.21004526,39461.0,39454.0,0.37761]
[1645848160713,0.21004526,39461.0,39453.0,0.052]
[1645848160915,0.21018524,39461.0,39454.0,0.37761]
[1645848161115,0.21018524,39461.0,39453.0,0.002]
[1645848161116,0.00013998,39461.0,39453.0,0.002]
[1645848161317,0.00013998,39461.0,39454.0,0.41609942]
[1645848161716,0.00013998,39461.0,39455.0,0.03848942]
[1645848161915,0.1175,39465.0,39456.0,0.37761]
[1645848162161,0.00037692,39461.0,39457.0,0.03848942]
[1645848162362,0.00037692,39461.0,39458.0,0.37761]
[1645848162560,0.00037692,39461.0,39458.0,0.42761]
[1645848162969,0.00037692,39461.0,39456.0,0.051]
[1645848163164,0.19567312,39462.0,39457.0,0.02670575]
[1645848163363,0.00037692,39461.0,39458.0,0.37761]
[1645848163764,0.00037692,39461.0,39457.0,0.37761]
[1645848164263,0.1924,39468.0,39458.0,0.37761]
[1645848164463,0.1924,39468.0,39452.0,0.40297]
[1645848164663,0.00037692,39461.0,39457.0,0.002]
[1645848164864,0.00037692,39461.0,39458.0,0.37761]
[1645848165567,0.20886423,39466.0,39457.0,0.37591155]
[1645848165809,0.00037692,39461.0,39457.0,0.37591155]
[1645848166009,0.00037692,39461.0,39458.0,0.37761]
[1645848166715,0.0067985,39469.0,39460.0,0.37391155]
[1645848166914,0.00150745,39468.0,39462.0,0.37391155]
[1645848167112,0.00150745,39468.0,39465.0,0.69798058]
[1645848167311,0.00150745,39468.0,39467.0,0.37761]
[1645848167913,0.0067985,39469.0,39467.0,0.37761]
[1645848168313,0.00717537,39469.0,39467.0,0.37761]
[1645848168613,0.00717537,39469.0,39467.0,0.37861]
[1645848168811,0.00717537,39469.0,39468.0,0.3516047]
[1645848169013,0.00717537,39469.0,39468.0,0.37761]
[1645848169215,0.0067985,39469.0,39468.0,0.37761]
[1645848171169,0.0067985,39469.0,39466.0,0.3516047]
[1645848171373,0.0067985,39469.0,39467.0,0.37761]
[1645848171769,0.00717537,39469.0,39467.0,0.37761]
[1645848172470,0.00717537,39469.0,39465.0,0.05]
[1645848172671,0.0077985,39469.0,39464.0,0.3516047]
[1645848172871,0.0077985,39469.0,39463.0,0.37761]
[1645848173070,0.0077985,39469.0,39464.0,0.3516047]
[1645848173320,0.0077985,39469.0,39463.0,0.37761]
[1645848173517,0.0077985,39469.0,39464.0,0.3516047]
[1645848173715,0.0077985,39469.0,39463.0,0.37761]
[1645848174012,0.0067985,39469.0,39464.0,0.3516047]
[1645848174213,0.0067985,39469.0,39465.0,0.37761]
[1645848174214,0.00037688,39468.0,39465.0,0.37761]
[1645848174412,0.00037688,39468.0,39466.0,0.3516047]
[1645848174612,0.00037688,39468.0,39467.0,0.37761]
[1645848175114,0.0067985,39469.0,39467.0,0.37761]
[1645848175312,0.00717537,39469.0,39464.0,0.001]
[1645848175513,0.00717537,39469.0,39465.0,0.37761]
[1645848175714,0.00717537,39469.0,39465.0,0.791037]
[1645848175917,0.00717537,39469.0,39465.0,0.363427]
[1645848176315,0.0067985,39469.0,39465.0,0.363427]
[1645848176716,0.00817538,39469.0,39465.0,0.363427]
[1645848177469,0.0077985,39469.0,39464.0,0.37761]
[1645848177865,0.00793876,39469.0,39463.0,0.3516047]
[1645848178068,0.00693876,39469.0,39464.0,0.37761]
[1645848178469,0.00693876,39469.0,39465.0,0.37761]
[1645848178664,0.0067985,39469.0,39464.0,0.001]
[1645848178865,0.00014026,39468.0,39464.0,0.001]
[1645848179669,0.00014026,39468.0,39465.0,0.37761]
[1645848179867,0.0067985,39469.0,39465.0,0.37761]
[1645848180069,0.0067985,39469.0,39464.0,0.37761]
[1645848180270,0.0067985,39469.0,39462.0,0.025]
[1645848180271,0.17619825,39467.0,39462.0,0.025]